{"text_format":"1","workbook":"xlsx","n_sheets":2,"sheets":["Sheet1 (2)","Sheet1"],"not_rendered":{"charts":0,"images":0,"macros":0,"external_links":0,"defined_names":0,"comments":0,"pivot_tables":0},"unopened":[],"bounds":{"document_bytes":16777216,"sheet_cells":100000,"rows_first":2000,"rows_last":500,"rows_between":2000,"halvings":0,"cell_chars":16384,"cell_head_chars":4096},"cells_cut":0,"cells_raw":0,"read":"whole","date_system":"1900"}

{"sheet":"Sheet1 (2)","index":0,"n_rows":88,"n_cols":10,"rows_kept":88,"cut":false,"hidden":false,"merged":[]}
[null,{"$f":"COUNTA(C3:C109)","v":74},null,"Final","1.osak","2.osak","3.osak","4.osak","5.osak"]
[null,null,"D14 Kultakompassi",null,null,null,null,null,null,"ok"]
[null,{"$f":"RANK(D3,D$3:D$13)","v":1},"Heikkinen Aada",{"$f":"IF(COUNT(E3:I3)=5,SUM(E3:I3)-SMALL(E3:I3,1),SUM(E3:I3))","v":36},9,8,9,8,10]
[null,{"$f":"RANK(D4,D$3:D$13)","v":3},"Saari Annalotta",{"$f":"IF(COUNT(E4:I4)=5,SUM(E4:I4)-SMALL(E4:I4,1),SUM(E4:I4))","v":26},0,10,7,9]
[null,3,"Hokkanen Liina",26,7,6,5,7,6]
[null,2,"Anttila Ilona ",28,10,null,null,10,8]
[null,3,"Väisänen Martta",26,5,9,null,5,7]
[null,8,"Länsitie Pinja",16,6,7,null,3]
[null,6,"Palosaari Maiju",21,0,0,10,6,5]
[null,9,"Kangas Siiri",14,null,null,6,4,4]
[null,10,"Alahäivälä Silja",8,0,0,8]
[null,7,"Similä Helmiina",18,8,null,null,null,10]
[null,11,"Tikkanen Pieta",6,4,null,null,2]
[null,{"$error":"#N/A"},null,0]
[null,{"$error":"#N/A"},null,0]
[null,{"$error":"#N/A"},null,0]
[null,null,"H14 Kultakompassi",0,null,null,null,null,null,"ok"]
[null,{"$f":"RANK(D18,D$18:D$19)","v":1},"Ukkola Santeri",39,10,10,10,null,9]
[null,{"$f":"RANK(D19,D$18:D$19)","v":2},"Paakkolanvaara Kalle",38,null,9,9,10,10]
[null,{"$f":"RANK(D20,D$3:D$233)","v":70},null,0]
[null,70,null,0]
[null,70,"Hopeakompassi D12 TR + suora",0,null,null,null,null,null,"ok"]
[null,{"$f":"RANK(D23,D$23:D$38)","v":1},"Hokkanen Hilma",38,9,9,10,10,9]
[null,{"$f":"RANK(D24,D$23:D$38)","v":3},"Määttä Malla",31,6,7,8,10,5]
[null,2,"Niemelä Hetta",35,10,3,9,8,8]
[null,4,"Saari Amanda",27,null,10,9,8]
[null,5,"Kangas Inga",26,3,8,7,7,4]
[null,7,"Eilola Jenna",21,4,4,5,6,6]
[null,10,"Juka Eevi",17,5,5,7]
[null,6,"Tihinen Milja",25,7,null,8,null,10]
[null,11,"Rinta Sofi",15,null,6,null,9,null,"hylsy"]
[null,12,"Saranki Lotta",11,1,1,4,5]
[null,9,"Leinonen Helmi",18,null,2,null,9,7]
[null,8,"Ryytty Inka",20,null,null,10,null,10]
[null,13,"Jeskanen Anni",8,8]
[null,14,"Märsynaho Minja",6,null,null,6]
[null,14,"Niemelä Inka",6,null,null,6]
[null,16,"Tulppo Eevi",2,2]
[null,70,null,0]
[null,70,null,0]
[null,70,null,0]
[null,70,"Hopeakompassi H12 TR + suora",0,null,null,null,null,null,"ok"]
[null,{"$f":"RANK(D43,D$43:D$54)","v":1},"Viippola Veeti",40,10,10,null,10,10]
[null,{"$f":"RANK(D44,D$43:D$54)","v":3},"Karhu Lauri",32,3,8,8,8,8]
[null,5,"Puurunen Joona",26,8,9,9]
[null,2,"Paakkolanvaara Ilpo",35,null,7,10,9,9]
[null,4,"Westerholm Lauri",28,9,null,10,null,9]
[null,6,"Heino Santeri",25,null,null,7,10,8]
[null,7,"Manninen Eelis",24,7,null,7,null,10]
[null,8,"Tihinen Matias",19,5,null,8,null,6]
[null,10,"Alahäivälä Pauli",9,null,null,9]
[null,9,"Kummala Arttu",15,2,null,6,null,7]
[null,11,"Vanhakangas Miika",6,6]
[null,12,"Seväkivi Heikki",4,4]
[null,59,"Laurila viljami",6,null,null,null,null,6]
[null,70,null,0]
[null,70,"Pronssikompassi D10 RR + suora",0]
[null,{"$f":"RANK(D58,D$58:D$70)","v":2},"Talonen Milda",37,6,10,10,9,8]
[null,{"$f":"RANK(D59,D$58:D$70)","v":3},"Määttä Hilla",36,9,5,9,9,9]
[null,4,"Heikkinen Aamu",32,8,8,9,5,7]
[null,1,"Ryytty Elena",{"$f":"IF(COUNT(E61:I61)=5,SUM(E61:I61)-SMALL(E61:I61,1),SUM(E61:I61))","v":40},10,null,10,10,10]
[null,6,"Kangas Saga",30,2,7,8,7,8]
[null,7,"Pitkänen Enni",24,null,9,7,8]
[null,5,"Anttila Oona",31,5,null,7,10,9]
[null,8,"Saranki Kerttu",15,3,6,null,6]
[null,9,"Myllylä Emmi",12,4,null,4,4]
[null,10,"Tulppo Saana",7,7]
[null,10,"Laitinen Edith",{"$f":"IF(COUNT(E68:I68)=5,SUM(E68:I68)-SMALL(E68:I68,1),SUM(E68:I68))","v":7},null,4,null,3]
[null,12,"Tihinen Emma",5,null,null,5]
[null,13,"Niemelä Pihla",3,null,null,3]
[null,{"$f":"RANK(D71,D$3:D$233)","v":70},null,0]
[null,70,null,0]
[null,70,null,0]
[null,70,"Pronssikompassi H10 RR + suora",0,null,null,null,null,null,"OK"]
[null,{"$f":"RANK(D75,D$75:D$87)","v":2},"Mäkäräinen Eeli",34,9,5,10,10]
[null,{"$f":"RANK(D76,D$75:D$87)","v":1},"Alatalo Juho",36,10,6,8,9,9]
[null,{"$f":"RANK(D77,D$75:D$87)","v":3},"Väisänen Viljami",32,6,9,7,8,8]
[null,{"$f":"RANK(D78,D$75:D$87)","v":5},"Vierimaa Juuso",27,8,8,2,9]
[null,{"$f":"RANK(D79,D$75:D$87)","v":4},"Puurunen Peetu",29,3,7,9,6,7]
[null,{"$f":"RANK(D80,D$75:D$87)","v":6},"Alatalo Topi",24,7,3,6,5,6]
[null,{"$f":"RANK(D81,D$75:D$87)","v":9},"Leinonen Hannes",20,null,10,null,10]
[null,{"$f":"RANK(D82,D$75:D$87)","v":7},"Häikiö Aaro",22,null,null,10,7,5]
[null,{"$f":"RANK(D83,D$75:D$87)","v":7},"Kangas Emil",22,5,4,3,null,10]
[null,{"$f":"RANK(D84,D$75:D$87)","v":11},"Tihinen Elias",12,4,null,5,null,3]
[null,{"$f":"RANK(D85,D$75:D$87)","v":12},"Vasankari Eeli",8,null,null,4,4]
[null,{"$f":"RANK(D86,D$75:D$87)","v":13},"Väyrynen Viljami",{"$f":"IF(COUNT(E86:I86)=5,SUM(E86:I86)-SMALL(E86:I86,1),SUM(E86:I86))","v":1},null,null,1]
[null,{"$f":"RANK(D87,D$75:D$87)","v":10},"Aalto Jorma",{"$f":"SUM(H87:I87)","v":18},null,null,null,8,10]
[null,null,"Myllylä Tuukka",4,null,null,null,null,4]

{"sheet":"Sheet1","index":1,"n_rows":87,"n_cols":9,"rows_kept":87,"cut":false,"hidden":false,"merged":[]}
[null,{"$f":"COUNTA(C3:C109)","v":72},null,"Final","1.osak","2.osak","3.osak","4.osak","5.osak"]
[null,null,"D14 Kultakompassi"]
[null,{"$f":"RANK(D3,D$3:D$26)","v":2},"Heikkinen Aada",{"$f":"IF(COUNT(E3:I3)=5,SUM(E3:I3)-SMALL(E3:I3,1),SUM(E3:I3))","v":34},9,8,9,8]
[null,{"$f":"RANK(D4,D$3:D$133)","v":18},"Saari Annalotta",{"$f":"IF(COUNT(E4:I4)=5,SUM(E4:I4)-SMALL(E4:I4,1),SUM(E4:I4))","v":26},0,10,7,9]
[null,{"$f":"RANK(D5,D$3:D$233)","v":21},"Hokkanen Liina",25,7,6,5,7]
[null,28,"Anttila Ilona ",20,10,null,null,10]
[null,30,"Väisänen Martta",19,5,9,null,5]
[null,36,"Länsitie Pinja",16,6,7,null,3]
[null,36,"Palosaari Maiju",16,0,0,10,6]
[null,47,"Kangas Siiri",10,null,null,6,4]
[null,51,"Alahäivälä Silja",8,0,0,8]
[null,51,"Similä Helmiina",8,8]
[null,58,"Tikkanen Pieta",6,4,null,null,2]
[null,67,null,0]
[null,67,null,0]
[null,67,null,0]
[null,null,"H14 Kultakompassi",0]
[null,8,"Ukkola Santeri",30,10,10,10]
[null,14,"Paakkolanvaara Kalle",28,null,9,9,10]
[null,67,null,0]
[null,67,null,0]
[null,67,"Hopeakompassi D12 TR + suora",0]
[null,1,"Hokkanen Hilma",38,9,9,10,10]
[null,7,"Määttä Malla",31,6,7,8,10]
[null,8,"Niemelä Hetta",30,10,3,9,8]
[null,15,"Saari Amanda",27,null,10,9,8]
[null,21,"Kangas Inga",25,3,8,7,7]
[null,30,"Eilola Jenna",19,4,4,5,6]
[null,33,"Juka Eevi",17,5,5,7]
[null,38,"Tihinen Milja",15,7,null,8]
[null,38,"Rinta Sofi",15,null,6,null,9]
[null,45,"Saranki Lotta",11,1,1,4,5]
[null,45,"Leinonen Helmi",11,null,2,null,9]
[null,47,"Ryytty Inka",10,null,null,10]
[null,{"$f":"RANK(D35,D$3:D$233)","v":51},"Jeskanen Anni",8,8]
[null,58,"Märsynaho Minja",6,null,null,6]
[null,58,"Niemelä Inka",6,null,null,6]
[null,65,"Tulppo Eevi",2,2]
[null,67,null,0]
[null,67,null,0]
[null,67,null,0]
[null,67,"Hopeakompassi H12 TR + suora",0]
[null,8,"Viippola Veeti",30,10,10,null,10]
[null,15,"Karhu Lauri",27,3,8,8,8]
[null,18,"Puurunen Joona",26,8,9,9]
[null,18,"Paakkolanvaara Ilpo",26,null,7,10,9]
[null,30,"Westerholm Lauri",19,9,null,10]
[null,33,"Heino Santeri",17,null,null,7,10]
[null,41,"Manninen Eelis",14,7,null,7]
[null,42,"Tihinen Matias",13,5,null,8]
[null,49,"Alahäivälä Pauli",9,null,null,9]
[null,51,"Kummala Arttu",8,2,null,6]
[null,58,"Vanhakangas Miika",6,6]
[null,63,"Seväkivi Heikki",4,4]
[null,67,null,0]
[null,67,null,0]
[null,67,"Pronssikompassi D10 RR + suora",0]
[null,2,"Talonen Milda",35,6,10,10,9]
[null,6,"Määttä Hilla",32,9,5,9,9]
[null,8,"Heikkinen Aamu",30,8,8,9,5]
[null,8,"Ryytty Elena",30,10,null,10,10]
[null,24,"Kangas Saga",24,2,7,8,7]
[null,24,"Pitkänen Enni",24,null,9,7,8]
[null,26,"Anttila Oona",22,5,null,7,10]
[null,38,"Saranki Kerttu",15,3,6,null,6]
[null,43,"Myllylä Emmi",12,4,null,4,4]
[null,56,"Tulppo Saana",7,7]
[null,56,"Laitinen Edith",{"$f":"IF(COUNT(E68:I68)=5,SUM(E68:I68)-SMALL(E68:I68,1),SUM(E68:I68))","v":7},null,4,null,3]
[null,62,"Tihinen Emma",5,null,null,5]
[null,64,"Niemelä Pihla",3,null,null,3]
[null,67,null,0]
[null,67,null,0]
[null,67,null,0]
[null,67,"Pronssikompassi H10 RR + suora",0]
[null,3,"Mäkäräinen Eeli",34,9,5,10,10]
[null,5,"Alatalo Juho",33,10,6,8,9]
[null,8,"Väisänen Viljami",30,6,9,7,8]
[null,15,"Vierimaa Juuso",27,8,8,2,9]
[null,21,"Puurunen Peetu",25,3,7,9,6]
[null,27,"Alatalo Topi",21,7,3,6,5]
[null,28,"Leinonen Hannes",20,null,10,null,10]
[null,33,"Häikiö Aaro",17,null,null,10,7]
[null,43,"Kangas Emil",12,5,4,3]
[null,49,"Tihinen Elias",9,4,null,5]
[null,51,"Vasankari Eeli",8,null,null,4,4]
[null,66,"Väyrynen Viljami",1,null,null,1]
[null,null,"Aalto Jorma",null,null,null,null,8]